[Event "Szansa Chess Open 2022"]
[Site "Warsaw"]
[Date "2022.09.18"]
[Round "7"]
[White "Rylski, Tadeusz"]
[Black "Pires, Emanuel Joao Robarts"]
[Result "0-1"]
[ECO "B08"]
[WhiteElo "1733"]
[BlackElo "1999"]
[Annotator "TA"]
[PlyCount "92"]
[EventDate "2022.09.17"]
[EventCountry "POL"]
[SourceTitle "playchess.com"]
[Source "ChessBase"]
[SourceQuality "1"]
[TimeControl "900+10"]

{[%evp 19,92,21,22,0,0,-16,-12,-12,-4,-1,-1,1,39,37,68,66,66,70,62,70,64,73,59,67,140,129,127,120,145,120,139,113,127,135,125,122,124,116,119,88,143,71,80,84,89,89,91,93,120,37,17,0,0,-8,0,-2,0,-299,-294,-287,-256,-552,-552,-517,-520,-29984,-29985,-29984,-29984,-29989,-29990,-29991,-29992,-29993,-29994]} 1. e4 {[%emt 0:00:01]} d6 {[%emt 0:00:04]} 2. d4 {[%emt 0:00:05]} Nf6 {[%emt 0:00:01]} 3. Nc3 {[%emt 0:00:15]} g6 {[%emt 0:00:01]} 4. Nf3 {[%emt 0:00:21]} Bg7 {[%emt 0:00:01]} 5. Be2 {[%emt 0:00:02]} O-O {[%emt 0:00:02]} 6. O-O {[%emt 0:00:04]} Bg4 {[%emt 0:00:05]} 7. h3 {[%emt 0:00:09]} Bxf3 {[%emt 0:00:01]} 8. Bxf3 {[%emt 0:00:06]} Nc6 {[%emt 0:00:02]} 9. Be3 {[%emt 0:00:23]} e5 {[%emt 0:00:01]} 10. dxe5 {[%emt 0:00:26]} dxe5 {[%emt 0:00:04]} 11. Qxd8 {[%emt 0:05:07] B08: Pirc Defence: Classical System.} Rfxd8 {[%emt 0:00:20]} 12. Rad1 {[%emt 0:01:40]} Nd4 {[%emt 0:00:06]} 13. Bxd4 {[%emt 0:00:26] The position is equal.} exd4 {[%emt 0:00:01]} 14. Nb5 {[%emt 0:00:24][%csl LRc7,LRd4] [#]} c5 $146 {[%emt 0:00:12]} ({Predecessor:} 14... Ne8 15. Rd3 c5 16. b3 a6 17. Na3 b5 18. Rfd1 Rac8 19. c4 Nd6 20. h4 Rc7 {½-½ (59) Ruff,M (1981)-Promyshlyanskiy,V (2237) Forchheim 2010}) 15. e5 {[%emt 0:00:38][%csl LRb7,LRf6][%cal Be4e5,Be5e6][%mdl 32]} Nd7 {[%emt 0:00:19]} (15... Nd5 $2 16. Bxd5 Rxd5 17. Nc7 $18) (15... Ne8 $5 {[%cal Rg7e5]}) 16. e6 {[%emt 0:00:02]} ({But not} 16. Bxb7 Rab8 17. e6 Rxb7 $17) 16... Ne5 {[%emt 0:01:04]} 17. Nc7 {[%emt 0:00:29]} ({Much weaker is} 17. Bxb7 Rab8 18. Nc7 (18. e7 Re8 $17) 18... Rxb7 $15) 17... Nxf3+ {[%emt 0:00:06]} 18. gxf3 {[%emt 0:00:02]} fxe6 {[%emt 0:00:50]} 19. Nxa8 {[%emt 0:00:21]} Rxa8 $14 {[%emt 0:00:01][%mdl 4096] Endgame KRR-KRB} 20. Rfe1 {[%emt 0:00:10]} Kf7 {[%emt 0:00:09]} 21. Re4 {[%emt 0:00:08]} g5 {[%emt 0:00:24]} (21... Rc8 $14) 22. f4 $1 $16 {[%emt 0:00:38]} h6 {[%emt 0:00:16]} 23. fxg5 {[%emt 0:00:06]} hxg5 {[%emt 0:00:01]} 24. f4 {[%emt 0:00:26]} Bf6 {[%emt 0:01:09]} 25. Rf1 {[%emt 0:00:29] Black must now prevent fxg5.} Rg8 {[%emt 0:00:15] Strongly threatening ...gxf4+.} 26. fxg5 {[%emt 0:00:42]} Rxg5+ {[%emt 0:00:02]} 27. Rg4 {[%emt 0:00:15] aiming for Rxg5.} Rh5 {[%emt 0:00:03] [#]} 28. Kg2 $1 {[%emt 0:00:30]} Ke7 {[%emt 0:00:43]} 29. Rg8 {[%emt 0:00:34]} Be5 {[%emt 0:00:45] Against Rb8} ({Black should try} 29... c4) 30. Rgf8 {[%emt 0:00:32]} (30. Ra8 $142) 30... Rg5+ {[%emt 0:00:10]} 31. Kh1 {[%emt 0:00:02]} Kd6 {[%emt 0:01:25]} 32. R1f7 {[%emt 0:00:35]} Kd5 {[%emt 0:00:52]} 33. Rxb7 {[%emt 0:00:17]} Rg3 {[%emt 0:00:18]} 34. Rh7 {[%emt 0:00:20]} (34. Rxa7 $16 {Hoping for Rh7.} Rxh3+ 35. Kg1) 34... c4 $1 $14 {[%emt 0:00:37]} 35. b3 {[%emt 0:00:49]} c3 {[%emt 0:00:28]} 36. Rxa7 {[%emt 0:02:04]} Rxh3+ {[%emt 0:00:18]} 37. Kg1 {[%emt 0:00:02]} d3 {[%emt 0:03:17]} 38. Ra5+ $2 {[%emt 0:01:19][%mdl 8192]} (38. Rd8+ $11 Kc6 39. cxd3) 38... Ke4 $19 {[%emt 0:00:17]} 39. cxd3+ {[%emt 0:00:03]} Rxd3 {[%emt 0:00:13]} 40. Rf1 $2 {[%emt 0:00:24] [#]} (40. Rc8 Bd4+ 41. Kg2 e5 $15) (40. Ra4+ {was necessary.} Rd4 41. Kf2) 40... Bd4+ $1 {[%emt 0:02:33]} 41. Kh2 {[%emt 0:00:01]} c2 {[%emt 0:00:18] ( -> ...Rd1)} 42. Rh5 {[%emt 0:00:26]} (42. Rc1 $19 Rc3 43. Ra4) 42... Rd1 {[%emt 0:00:28] Black mates.} 43. Rh4+ {[%emt 0:00:08]} Kd3 {[%emt 0:01:15]} 44. Rf3+ {[%emt 0:00:14]} Ke2 {[%emt 0:00:09]} 45. Rg3 {[%emt 0:00:06]} c1=Q {[%emt 0:00:31]} 46. Rg2+ {[%emt 0:00:08]} Bf2 {[%emt 0:00:04] Weighted Error Value: White=0.49/Black=0.08 (flawless)} 0-1

[Event "Szansa Chess Open 2022"]
[Site "Warsaw"]
[Date "2022.09.18"]
[Round "7"]
[White "Wieckowski, Michal"]
[Black "Ivanytska, Liudmyla"]
[Result "0-1"]
[ECO "B46"]
[WhiteElo "1684"]
[BlackElo "1845"]
[Annotator "NA COMBH"]
[PlyCount "64"]
[EventDate "2022.09.17"]
[EventCountry "POL"]
[SourceTitle "playchess.com"]
[Source "ChessBase"]
[SourceQuality "1"]
[TimeControl "900+10"]

1. e4 {[%emt 0:00:02]} c5 {[%emt 0:00:01]} 2. Nf3 {[%emt 0:00:01]} Nc6 {[%emt 0:00:03]} 3. d4 {[%emt 0:00:01]} cxd4 {[%emt 0:00:01]} 4. Nxd4 {[%emt 0:00:01]} a6 {[%emt 0:00:00]} 5. Nc3 {[%emt 0:00:03]} e6 {[%emt 0:00:03]} 6. Nxc6 {[%emt 0:00:42]} bxc6 {[%emt 0:00:01]} 7. Bd3 {[%emt 0:00:02]} Nf6 {[%emt 0:00:05]} 8. O-O {[%emt 0:00:04]} Be7 {[%emt 0:00:01]} 9. Bg5 {[%emt 0:00:35]} d5 {[%emt 0:00:07]} 10. exd5 {[%emt 0:00:19]} cxd5 {[%emt 0:00:20]} 11. Qe2 {[%emt 0:00:05]} Rb8 {[%emt 0:00:41]} 12. b3 {[%emt 0:00:14]} O-O {[%emt 0:00:36]} 13. Rfd1 {[%emt 0:03:07]} Qc7 {[%emt 0:00:25]} 14. Na4 {[%emt 0:01:14]} e5 {[%emt 0:00:13]} 15. Bxf6 {[%emt 0:01:04]} Bxf6 {[%emt 0:00:08]} 16. Bxa6 {[%emt 0:00:02]} Bxa6 {[%emt 0:00:17]} 17. Qxa6 {[%emt 0:00:02]} Qxc2 {[%emt 0:00:06]} 18. Rxd5 {[%emt 0:03:05]} e4 {[%emt 0:00:06]} 19. Rad1 {[%emt 0:00:02]} Qxa2 {[%emt 0:00:10]} 20. Qd6 {[%emt 0:00:50]} Rbd8 {[%emt 0:00:59]} 21. Qc6 {[%emt 0:02:07]} Qxb3 {[%emt 0:01:17]} 22. h3 {[%emt 0:00:03]} Qxd1+ {[%emt 0:00:09]} 23. Rxd1 {[%emt 0:00:03]} Rxd1+ {[%emt 0:00:01]} 24. Kh2 {[%emt 0:00:01]} Be5+ {[%emt 0:00:43]} 25. g3 {[%emt 0:00:05]} e3 {[%emt 0:00:02]} 26. Qf3 {[%emt 0:00:21]} Rfd8 {[%emt 0:00:23]} 27. Qxe3 {[%emt 0:00:44]} Bd4 {[%emt 0:00:19]} 28. Qe7 {[%emt 0:00:02]} Bxf2 {[%emt 0:00:19]} 29. Nc3 {[%emt 0:00:01]} Bc5 {[%emt 0:00:56]} 30. Qe4 {[%emt 0:00:25]} R1d3 {[%emt 0:02:42]} 31. Qe5 {[%emt 0:00:36]} Bd4 {[%emt 0:00:13]} 32. Qe7 {[%emt 0:00:03]} Bxc3 {[%emt 0:00:02]} 0-1

[Event "Szansa Chess Open 2022"]
[Site "Warsaw"]
[Date "2022.09.18"]
[Round "8"]
[White "Gumularz, Szymon"]
[Black "Chomczyk, Marek"]
[Result "1-0"]
[ECO "A04"]
[WhiteElo "2532"]
[BlackElo "2327"]
[Annotator "ChessBase"]
[PlyCount "43"]
[EventDate "2022.09.17"]
[EventCountry "POL"]
[SourceTitle "playchess.com"]
[Source "ChessBase"]
[SourceQuality "1"]
[TimeControl "900+10"]

1. Nf3 {[%emt 0:00:02]} c5 {[%emt 0:00:06]} 2. c4 {[%emt 0:00:05]} Nc6 {[%emt 0:00:03]} 3. Nc3 {[%emt 0:00:01]} g6 {[%emt 0:00:13]} 4. e3 {[%emt 0:00:02]} Nf6 {[%emt 0:00:10]} 5. d4 {[%emt 0:00:02]} cxd4 {[%emt 0:00:01]} 6. exd4 {[%emt 0:00:01]} d5 {[%emt 0:00:01]} 7. cxd5 {[%emt 0:00:07]} Nxd5 {[%emt 0:00:02]} 8. Bc4 {[%emt 0:00:04]} Nxc3 {[%emt 0:00:07]} 9. Qb3 {[%emt 0:00:01]} Nd5 {[%emt 0:00:02]} 10. Bxd5 {[%emt 0:00:02]} e6 {[%emt 0:00:05]} 11. Bxc6+ {[%emt 0:00:01]} bxc6 {[%emt 0:00:01]} 12. O-O {[%emt 0:00:02]} Qd5 {[%emt 0:00:09]} 13. Qc3 {[%emt 0:00:01]} f6 {[%emt 0:01:08]} 14. Re1 {[%emt 0:00:12]} a5 {[%emt 0:00:20]} 15. a3 {[%emt 0:00:04]} Bd6 {[%emt 0:00:03]} 16. Nd2 {[%emt 0:00:17]} O-O {[%emt 0:00:36]} 17. Ne4 {[%emt 0:00:02]} Bb4 {[%emt 0:02:49]} 18. axb4 {[%emt 0:00:38]} axb4 {[%emt 0:00:01]} 19. Rxa8 {[%emt 0:01:22]} bxc3 {[%emt 0:00:09]} 20. Rxc8 {[%emt 0:00:02]} cxb2 {[%emt 0:02:24]} 21. Nxf6+ {[%emt 0:00:12]} Kg7 {[%emt 0:00:01]} 22. Nxd5 {[%emt 0:00:13]} 1-0

[Event "Szansa Chess Open 2022"]
[Site "Warsaw"]
[Date "2022.09.18"]
[Round "8"]
[White "Nasuta, Grzegorz"]
[Black "Psyk, Radoslaw"]
[Result "0-1"]
[ECO "B03"]
[WhiteElo "2531"]
[BlackElo "2404"]
[Annotator "ChessBase"]
[PlyCount "56"]
[EventDate "2022.09.17"]
[EventCountry "POL"]
[SourceTitle "playchess.com"]
[Source "ChessBase"]
[SourceQuality "1"]
[TimeControl "900+10"]

1. e4 {[%emt 0:00:02]} Nf6 {[%emt 0:00:02]} 2. e5 {[%emt 0:00:02]} Nd5 {[%emt 0:00:02]} 3. d4 {[%emt 0:00:01]} d6 {[%emt 0:00:01]} 4. c4 {[%emt 0:00:02]} Nb6 {[%emt 0:00:01]} 5. f4 {[%emt 0:00:01]} dxe5 {[%emt 0:00:02]} 6. fxe5 {[%emt 0:00:01]} c5 {[%emt 0:00:01]} 7. d5 {[%emt 0:00:09]} g6 {[%emt 0:00:02]} 8. Nc3 {[%emt 0:00:45]} Bg7 {[%emt 0:00:02]} 9. Bf4 {[%emt 0:00:09]} O-O {[%emt 0:00:03]} 10. Qd2 {[%emt 0:04:52]} e6 {[%emt 0:00:06]} 11. d6 {[%emt 0:01:44]} Nc6 {[%emt 0:00:04]} 12. Nf3 {[%emt 0:00:01]} Nd7 {[%emt 0:00:30]} 13. Qe3 {[%emt 0:00:23]} f6 {[%emt 0:00:30]} 14. exf6 {[%emt 0:02:03]} Qxf6 {[%emt 0:04:26]} 15. Bg5 {[%emt 0:00:02]} Qf7 {[%emt 0:00:01]} 16. Bd3 {[%emt 0:02:37]} Bd4 {[%emt 0:02:31]} 17. Qd2 {[%emt 0:01:24]} Nde5 {[%emt 0:00:49]} 18. Rf1 {[%emt 0:00:01]} Nxf3+ {[%emt 0:02:33]} 19. Rxf3 {[%emt 0:00:02]} Qg7 {[%emt 0:00:01]} 20. Bh6 {[%emt 0:01:27]} Qe5+ {[%emt 0:00:15]} 21. Be2 {[%emt 0:00:36]} Rxf3 {[%emt 0:00:13]} 22. gxf3 {[%emt 0:00:02]} Qxd6 {[%emt 0:00:42]} 23. O-O-O {[%emt 0:01:21]} Bd7 {[%emt 0:00:33]} 24. Ne4 {[%emt 0:00:51]} Qxh2 {[%emt 0:01:41]} 25. Bf4 {[%emt 0:00:06]} Qg2 {[%emt 0:00:43]} 26. Nxc5 {[%emt 0:00:30]} Bxc5 {[%emt 0:00:44]} 27. Qxd7 {[%emt 0:00:01]} Qxe2 {[%emt 0:00:01]} 28. Qxb7 {[%emt 0:00:02]} Rb8 {[%emt 0:00:25]} 0-1

[Event "Szansa Chess Open 2022"]
[Site "Warsaw"]
[Date "2022.09.18"]
[Round "8"]
[White "Kosakowski, Jakub"]
[Black "Slomczewski, Michal"]
[Result "1-0"]
[ECO "B48"]
[WhiteElo "2457"]
[BlackElo "2108"]
[Annotator "ChessBase"]
[PlyCount "67"]
[EventDate "2022.09.17"]
[EventCountry "POL"]
[SourceTitle "playchess.com"]
[Source "ChessBase"]
[SourceQuality "1"]
[TimeControl "900+10"]

1. e4 {[%emt 0:00:03]} c5 {[%emt 0:00:01]} 2. Nf3 {[%emt 0:00:03]} e6 {[%emt 0:00:01]} 3. d4 {[%emt 0:00:03]} cxd4 {[%emt 0:00:02]} 4. Nxd4 {[%emt 0:00:03]} Nc6 {[%emt 0:00:01]} 5. Nc3 {[%emt 0:00:02]} Qc7 {[%emt 0:00:01]} 6. Be3 {[%emt 0:00:04]} a6 {[%emt 0:00:01]} 7. Qf3 {[%emt 0:00:05]} Nf6 {[%emt 0:01:40]} 8. O-O-O {[%emt 0:00:04]} Ne5 {[%emt 0:01:21]} 9. Qg3 {[%emt 0:00:03]} Nfg4 {[%emt 0:01:54]} 10. Bd2 {[%emt 0:03:20]} Bc5 {[%emt 0:01:55]} 11. Bf4 {[%emt 0:00:02]} h5 {[%emt 0:01:06]} 12. Be2 {[%emt 0:01:20]} d6 {[%emt 0:01:44]} 13. h3 {[%emt 0:01:50]} h4 {[%emt 0:02:12]} 14. hxg4 {[%emt 0:00:04]} hxg3 {[%emt 0:00:02]} 15. Rxh8+ {[%emt 0:00:02]} Ke7 {[%emt 0:00:13]} 16. Nf5+ {[%emt 0:00:10]} Kd7 {[%emt 0:01:08]} 17. Nxd6 {[%emt 0:00:03]} Kc6 {[%emt 0:02:32]} 18. Bxe5 {[%emt 0:00:12]} f6 {[%emt 0:00:01]} 19. Bxg3 {[%emt 0:00:05]} e5 {[%emt 0:00:11]} 20. Rxc8 {[%emt 0:00:48]} Rxc8 {[%emt 0:00:11]} 21. Nxc8 {[%emt 0:00:02]} Qxc8 {[%emt 0:00:04]} 22. Nd5 {[%emt 0:00:09]} b5 {[%emt 0:00:01]} 23. Rh1 {[%emt 0:00:36]} Qg8 {[%emt 0:01:02]} 24. Bf3 {[%emt 0:00:32]} Bd6 {[%emt 0:00:14]} 25. g5 {[%emt 0:00:08]} fxg5 {[%emt 0:00:07]} 26. Bxe5 {[%emt 0:00:04]} Qf8 {[%emt 0:00:27]} 27. Bxd6 {[%emt 0:00:07]} Qxd6 {[%emt 0:00:01]} 28. Ne3 {[%emt 0:00:07]} Qe5 {[%emt 0:00:05]} 29. Rd1 {[%emt 0:00:06]} Qe6 {[%emt 0:00:24]} 30. Kb1 {[%emt 0:00:23]} Qe5 {[%emt 0:00:54]} 31. a3 {[%emt 0:00:06]} b4 {[%emt 0:00:04]} 32. axb4 {[%emt 0:00:04]} Qb5 {[%emt 0:00:13]} 33. c3 {[%emt 0:00:07]} a5 {[%emt 0:00:02]} 34. Rd5 {[%emt 0:00:07]} 1-0

[Event "Szansa Chess Open 2022"]
[Site "Warsaw"]
[Date "2022.09.18"]
[Round "8"]
[White "Kozak, Antoni"]
[Black "Nguyen, Piotr"]
[Result "1-0"]
[ECO "B36"]
[WhiteElo "2434"]
[BlackElo "2421"]
[Annotator "ChessBase"]
[PlyCount "80"]
[EventDate "2022.09.17"]
[EventCountry "POL"]
[SourceTitle "playchess.com"]
[Source "ChessBase"]
[SourceQuality "1"]
[TimeControl "900+10"]

1. e4 {[%emt 0:00:01]} c5 {[%emt 0:00:01]} 2. Nf3 {[%emt 0:00:01]} g6 {[%emt 0:00:02]} 3. c4 {[%emt 0:00:01]} Nc6 {[%emt 0:00:02]} 4. d4 {[%emt 0:00:01]} cxd4 {[%emt 0:00:02]} 5. Nxd4 {[%emt 0:00:01]} Nf6 {[%emt 0:00:02]} 6. Nc3 {[%emt 0:00:02]} Nxd4 {[%emt 0:00:01]} 7. Qxd4 {[%emt 0:00:01]} d6 {[%emt 0:00:02]} 8. Be3 {[%emt 0:00:47]} Bg7 {[%emt 0:00:01]} 9. Be2 {[%emt 0:00:02]} O-O {[%emt 0:00:03]} 10. Qd3 {[%emt 0:00:01]} a5 {[%emt 0:00:08]} 11. O-O {[%emt 0:00:26]} a4 {[%emt 0:00:01]} 12. Rac1 {[%emt 0:00:19]} Qa5 {[%emt 0:00:03]} 13. h3 {[%emt 0:03:09]} Be6 {[%emt 0:01:21]} 14. f4 {[%emt 0:02:50]} Rfc8 {[%emt 0:00:02]} 15. b3 {[%emt 0:00:00]} axb3 {[%emt 0:00:03]} 16. axb3 {[%emt 0:00:01]} Qb4 {[%emt 0:01:14]} 17. f5 {[%emt 0:00:03]} Bd7 {[%emt 0:00:13]} 18. fxg6 {[%emt 0:05:59]} hxg6 {[%emt 0:00:05]} 19. e5 {[%emt 0:00:01]} dxe5 {[%emt 0:01:27]} 20. Rxf6 {[%emt 0:00:01]} exf6 {[%emt 0:00:10]} 21. Qxd7 {[%emt 0:00:04]} Qxb3 {[%emt 0:00:21]} 22. Bf3 {[%emt 0:00:59]} Rf8 {[%emt 0:04:33]} 23. Qb5 {[%emt 0:00:47]} Qa3 {[%emt 0:00:54]} 24. Bxb7 {[%emt 0:00:33]} Rab8 {[%emt 0:00:37]} 25. c5 {[%emt 0:00:19]} f5 {[%emt 0:01:32]} 26. c6 {[%emt 0:00:01]} f4 {[%emt 0:00:02]} 27. Bd2 {[%emt 0:00:10]} Rbd8 {[%emt 0:00:47]} 28. Nd5 {[%emt 0:00:30]} Qa7+ {[%emt 0:02:20]} 29. Qc5 {[%emt 0:00:29]} Qa2 {[%emt 0:00:27]} 30. Ne7+ {[%emt 0:01:01]} Kh7 {[%emt 0:00:02]} 31. Rc2 {[%emt 0:00:13]} Qb1+ {[%emt 0:00:34]} 32. Kh2 {[%emt 0:00:02]} Bf6 {[%emt 0:01:22]} 33. Rc1 {[%emt 0:01:19]} Qd3 {[%emt 0:00:16]} 34. Be1 {[%emt 0:00:05]} e4 {[%emt 0:01:45]} 35. c7 {[%emt 0:00:07]} f3 {[%emt 0:00:08]} 36. cxd8=Q {[%emt 0:00:21]} Rxd8 {[%emt 0:00:07]} 37. Qc4 {[%emt 0:00:15]} Be5+ {[%emt 0:00:19]} 38. Bg3 {[%emt 0:00:01]} Bxg3+ {[%emt 0:00:08]} 39. Kxg3 {[%emt 0:00:01]} Qd6+ {[%emt 0:00:08]} 40. Kg4 {[%emt 0:00:05]} f5+ {[%emt 0:00:25]} 1-0

[Event "Szansa Chess Open 2022"]
[Site "Warsaw"]
[Date "2022.09.18"]
[Round "8"]
[White "Kowalski, Igor"]
[Black "Krasenkova, Elena"]
[Result "1-0"]
[ECO "B06"]
[WhiteElo "2344"]
[BlackElo "2124"]
[Annotator "ChessBase"]
[PlyCount "161"]
[EventDate "2022.09.17"]
[EventCountry "POL"]
[SourceTitle "playchess.com"]
[Source "ChessBase"]
[SourceQuality "1"]
[TimeControl "900+10"]

1. d4 {[%emt 0:00:01]} g6 {[%emt 0:00:02]} 2. e4 {[%emt 0:00:01]} Bg7 {[%emt 0:00:02]} 3. Nc3 {[%emt 0:00:01]} c6 {[%emt 0:00:01]} 4. Be3 {[%emt 0:00:29]} d6 {[%emt 0:00:07]} 5. Qd2 {[%emt 0:00:14]} Nd7 {[%emt 0:00:06]} 6. h4 {[%emt 0:00:04]} h5 {[%emt 0:00:04]} 7. Nh3 {[%emt 0:00:03]} b5 {[%emt 0:00:01]} 8. Ng5 {[%emt 0:00:08]} Ndf6 {[%emt 0:01:24]} 9. f3 {[%emt 0:00:24]} b4 {[%emt 0:00:18]} 10. Ne2 {[%emt 0:00:03]} a5 {[%emt 0:00:08]} 11. Nf4 {[%emt 0:00:04]} Nh7 {[%emt 0:03:04]} 12. Nxh7 {[%emt 0:00:45]} Rxh7 {[%emt 0:00:01]} 13. O-O-O {[%emt 0:00:04]} Bh6 {[%emt 0:00:55]} 14. Bd3 {[%emt 0:00:55]} e5 {[%emt 0:01:24]} 15. Nh3 {[%emt 0:00:51]} Bxh3 {[%emt 0:00:39]} 16. Rxh3 {[%emt 0:00:02]} Qe7 {[%emt 0:00:00]} 17. Bc4 {[%emt 0:01:01]} Kf8 {[%emt 0:00:46]} 18. Bxh6+ {[%emt 0:00:07]} Nxh6 {[%emt 0:00:02]} 19. dxe5 {[%emt 0:00:14]} dxe5 {[%emt 0:00:05]} 20. Qd6 {[%emt 0:00:33]} Qxd6 {[%emt 0:01:08]} 21. Rxd6 {[%emt 0:00:02]} Rc8 {[%emt 0:00:01]} 22. Rh1 {[%emt 0:00:04]} Ke7 {[%emt 0:00:59]} 23. Rhd1 {[%emt 0:00:03]} Rc7 {[%emt 0:00:01]} 24. Rd8 {[%emt 0:00:05]} Rg7 {[%emt 0:00:49]} 25. Ra8 {[%emt 0:00:36]} Rd7 {[%emt 0:01:57]} 26. Rxa5 {[%emt 0:00:49]} Rxd1+ {[%emt 0:00:03]} 27. Kxd1 {[%emt 0:00:02]} Kd6 {[%emt 0:00:01]} 28. Ke2 {[%emt 0:00:10]} g5 {[%emt 0:00:01]} 29. hxg5 {[%emt 0:00:03]} Rxg5 {[%emt 0:00:01]} 30. Kf2 {[%emt 0:00:04]} f5 {[%emt 0:00:09]} 31. Bd3 {[%emt 0:00:16]} f4 {[%emt 0:00:35]} 32. Ra7 {[%emt 0:00:08]} h4 {[%emt 0:00:20]} 33. a4 {[%emt 0:00:33]} bxa3 {[%emt 0:00:02]} 34. bxa3 {[%emt 0:00:01]} Rh5 {[%emt 0:00:45]} 35. a4 {[%emt 0:00:07]} h3 {[%emt 0:00:01]} 36. gxh3 {[%emt 0:00:01]} Rxh3 {[%emt 0:00:01]} 37. a5 {[%emt 0:00:07]} Rh1 {[%emt 0:00:33]} 38. a6 {[%emt 0:00:03]} Ra1 {[%emt 0:00:06]} 39. Rg7 {[%emt 0:00:23]} Kc5 {[%emt 0:00:22]} 40. a7 {[%emt 0:00:48]} Ra2 {[%emt 0:00:47]} 41. Rh7 {[%emt 0:00:05]} Ng8 {[%emt 0:00:41]} 42. Rh8 {[%emt 0:00:01]} Rxa7 {[%emt 0:00:02]} 43. Rxg8 {[%emt 0:00:02]} Rd7 {[%emt 0:00:04]} 44. Ke2 {[%emt 0:00:21]} Kd4 {[%emt 0:00:03]} 45. Kd2 {[%emt 0:00:09]} Kc5 {[%emt 0:00:28]} 46. Rg5 {[%emt 0:00:12]} Kd6 {[%emt 0:00:03]} 47. Kc3 Ra7 {[%emt 0:00:02]} 48. Bc4 {[%emt 0:00:06]} Ra3+ {[%emt 0:00:57]} 49. Bb3 {[%emt 0:00:11]} Ra1 {[%emt 0:00:01]} 50. Rg6+ {[%emt 0:00:03]} Kd7 {[%emt 0:00:11]} 51. Kd2 {[%emt 0:00:07]} Rf1 {[%emt 0:00:18]} 52. Ke2 {[%emt 0:00:01]} Rb1 {[%emt 0:00:01]} 53. Be6+ {[%emt 0:00:14]} Kc7 {[%emt 0:00:22]} 54. Bg4 {[%emt 0:00:34]} Rb5 {[%emt 0:00:36]} 55. Kd3 {[%emt 0:00:03]} Rc5 {[%emt 0:00:08]} 56. Re6 {[%emt 0:00:06]} Kd8 {[%emt 0:00:31]} 57. c4 {[%emt 0:00:08]} Kc7 {[%emt 0:00:01]} 58. Kc3 {[%emt 0:00:01]} Ra5 {[%emt 0:00:34]} 59. Kb4 Ra1 {[%emt 0:00:04]} 60. Rxe5 {[%emt 0:00:03]} Kb6 {[%emt 0:00:01]} 61. Rf5 {[%emt 0:00:06]} Rb1+ {[%emt 0:00:02]} 62. Kc3 {[%emt 0:00:01]} Rc1+ {[%emt 0:00:03]} 63. Kd3 {[%emt 0:00:02]} Rd1+ {[%emt 0:00:04]} 64. Kc2 {[%emt 0:00:01]} Rd4 {[%emt 0:00:10]} 65. Kc3 {[%emt 0:00:05]} c5 {[%emt 0:00:04]} 66. Rxf4 {[%emt 0:00:02]} Rd1 {[%emt 0:00:01]} 67. Rf6+ {[%emt 0:00:04]} Kc7 {[%emt 0:00:05]} 68. e5 {[%emt 0:00:07]} Rc1+ {[%emt 0:00:01]} 69. Kd3 {[%emt 0:00:03]} Rd1+ {[%emt 0:00:02]} 70. Kc2 {[%emt 0:00:03]} Re1 {[%emt 0:00:06]} 71. f4 {[%emt 0:00:03]} Rg1 {[%emt 0:00:07]} 72. Bf3 {[%emt 0:00:06]} Rf1 {[%emt 0:00:11]} 73. Bd5 {[%emt 0:00:01]} Rf2+ {[%emt 0:00:08]} 74. Kd3 {[%emt 0:00:02]} Rh2 {[%emt 0:00:03]} 75. Rf7+ {[%emt 0:00:03]} Kd8 {[%emt 0:00:03]} 76. e6 {[%emt 0:00:02]} Rh6 {[%emt 0:00:18]} 77. f5 {[%emt 0:00:03]} Rh3+ {[%emt 0:00:18]} 78. Ke4 {[%emt 0:00:03]} Rh2 {[%emt 0:00:21]} 79. Ke5 {[%emt 0:00:02]} Rd2 {[%emt 0:00:56]} 80. f6 {[%emt 0:00:06]} Ra2 {[%emt 0:00:35]} 81. e7+ {[%emt 0:00:05]} 1-0

[Event "Szansa Chess Open 2022"]
[Site "Warsaw"]
[Date "2022.09.18"]
[Round "8"]
[White "Lewicki, Miroslaw"]
[Black "Lewtak, Damian"]
[Result "1-0"]
[ECO "C07"]
[WhiteElo "2336"]
[BlackElo "2386"]
[Annotator "ChessBase"]
[PlyCount "49"]
[EventDate "2022.09.17"]
[EventCountry "POL"]
[SourceTitle "playchess.com"]
[Source "ChessBase"]
[SourceQuality "1"]
[TimeControl "900+10"]

1. e4 {[%emt 0:00:02]} e6 {[%emt 0:00:04]} 2. d4 {[%emt 0:00:04]} d5 {[%emt 0:00:02]} 3. Nd2 {[%emt 0:00:01]} c5 {[%emt 0:00:05]} 4. exd5 {[%emt 0:00:19]} Qxd5 {[%emt 0:00:02]} 5. Ngf3 {[%emt 0:00:03]} cxd4 {[%emt 0:00:04]} 6. Bc4 {[%emt 0:00:02]} Qd6 {[%emt 0:00:04]} 7. O-O {[%emt 0:00:07]} Nc6 {[%emt 0:00:06]} 8. Nb3 {[%emt 0:00:10]} Nf6 {[%emt 0:00:21]} 9. Nbxd4 {[%emt 0:00:10]} Nxd4 {[%emt 0:00:19]} 10. Nxd4 {[%emt 0:00:10]} Be7 {[%emt 0:00:02]} 11. Nb5 {[%emt 0:01:30]} Qc6 {[%emt 0:00:02]} 12. Qe2 {[%emt 0:00:21]} O-O {[%emt 0:01:18]} 13. Be3 {[%emt 0:01:25]} b6 {[%emt 0:00:38]} 14. Nd4 {[%emt 0:00:48]} Qc7 {[%emt 0:00:12]} 15. Rad1 {[%emt 0:01:29]} Bb7 {[%emt 0:00:12]} 16. Bd3 {[%emt 0:00:51]} Rfd8 {[%emt 0:00:40]} 17. c3 {[%emt 0:00:33]} h6 {[%emt 0:00:44]} 18. Bb1 {[%emt 0:00:50]} Rd7 {[%emt 0:02:14]} 19. f3 {[%emt 0:01:05]} Rad8 {[%emt 0:00:31]} 20. Bf2 {[%emt 0:00:41]} Bd5 {[%emt 0:01:31]} 21. Qc2 {[%emt 0:00:40]} Qf4 {[%emt 0:00:40]} 22. Rfe1 {[%emt 0:00:30]} Bb7 {[%emt 0:01:21]} 23. Bg3 {[%emt 0:00:17]} Qg5 {[%emt 0:00:31]} 24. Re5 {[%emt 0:00:24]} Qg6 {[%emt 0:00:19]} 25. Qe2 {[%emt 0:00:15]} 1-0